[Event "Early-Titled-Tuesday-Blitz-January-23-2024"]
[Site "Chess.com"]
[Date "2024.01.23"]
[Round "9"]
[White "Hikaru"]
[Black "sergoy"]
[Result "1-0"]
[WhiteElo "3306"]
[BlackElo "3032"]
[TimeControl "180+1"]
[EndTime "9:45:33 PST"]
[Termination "Hikaru won by resignation"]

1. d4 {[%clk 0:03:00.9]} 1... d6 {[%clk 0:02:59.7]} 2. e4 {[%clk 0:03:00.6]}
2... Nf6 {[%clk 0:02:53.7]} 3. Nc3 {[%clk 0:03:00.5]} 3... g6 {[%clk 0:02:52.5]}
4. f4 {[%clk 0:03:00.3]} 4... Bg7 {[%clk 0:02:51.2]} 5. Qd2 {[%clk 0:03:00.1]}
5... c5 {[%clk 0:02:46.3]} 6. dxc5 {[%clk 0:02:59.3]} 6... O-O {[%clk 0:02:45]}
7. cxd6 {[%clk 0:02:55.9]} 7... exd6 {[%clk 0:02:45.1]} 8. Bd3 {[%clk
0:02:56.2]} 8... d5 {[%clk 0:02:23.7]} 9. e5 {[%clk 0:02:54.4]} 9... d4 {[%clk
0:02:24.3]} 10. Nce2 {[%clk 0:02:40.7]} 10... Ng4 {[%clk 0:02:22.8]} 11. Nf3
{[%clk 0:02:40.9]} 11... Nc6 {[%clk 0:02:22.8]} 12. O-O {[%clk 0:02:40.6]} 12...
Ne3 {[%clk 0:02:15]} 13. Re1 {[%clk 0:02:39.7]} 13... Bg4 {[%clk 0:01:28.9]} 14.
Be4 {[%clk 0:02:37.2]} 14... f6 {[%clk 0:01:11.2]} 15. Nexd4 {[%clk 0:01:21.2]}
15... Nxd4 {[%clk 0:01:01]} 16. Qxd4 {[%clk 0:01:16.3]} 16... Bxf3 {[%clk
0:00:33.5]} 17. Qxe3 {[%clk 0:01:12.9]} 17... Bxe4 {[%clk 0:00:26.5]} 18. Qxe4
{[%clk 0:01:13.1]} 18... fxe5 {[%clk 0:00:26.8]} 19. fxe5 {[%clk 0:01:13.4]}
19... Qb6+ {[%clk 0:00:26.3]} 20. Qe3 {[%clk 0:01:10.9]} 20... Qc6 {[%clk
0:00:25.5]} 21. Qb3+ {[%clk 0:01:01.1]} 21... Kh8 {[%clk 0:00:25.2]} 22. Bd2
{[%clk 0:01:01.6]} 22... Rf5 {[%clk 0:00:21.3]} 23. e6 {[%clk 0:00:55.2]} 23...
Raf8 {[%clk 0:00:19.3]} 24. e7 {[%clk 0:00:43.6]} 24... Re8 {[%clk 0:00:19.8]}
25. Rad1 {[%clk 0:00:37.8]} 25... Qc5+ {[%clk 0:00:14.6]} 26. Qe3 {[%clk
0:00:24.2]} 26... Qxc2 {[%clk 0:00:07.6]} 27. Bc3 {[%clk 0:00:24.4]} 27... Bxc3
{[%clk 0:00:07.9]} 28. Rd8 {[%clk 0:00:14.3]} 28... Bxe1 {[%clk 0:00:03.6]} 29.
Rxe8+ {[%clk 0:00:14.7]} 29... Kg7 {[%clk 0:00:04.1]} 30. Rg8+ {[%clk
0:00:15.4]} 30... Kxg8 {[%clk 0:00:02.7]} 31. e8=Q+ {[%clk 0:00:15.6]} 31... Kg7
{[%clk 0:00:02.4]} 32. Q8e7+ {[%clk 0:00:11.6]} 32... Rf7 {[%clk 0:00:02.2]} 33.
Q7e5+ {[%clk 0:00:10.6]} 33... Kg8 {[%clk 0:00:02.4]} 34. Qxe1 {[%clk
0:00:10.6]} 1-0

[Event "Early-Titled-Tuesday-Blitz-January-23-2024"]
[Site "Chess.com"]
[Date "2024.01.23"]
[Round "9"]
[White "McCarthyStone"]
[Black "campochess"]
[Result "1-0"]
[WhiteElo "2348"]
[BlackElo "2081"]
[TimeControl "180+1"]
[EndTime "9:45:36 PST"]
[Termination "McCarthyStone won on time"]

1. e4 {[%clk 0:03:00.9]} 1... c5 {[%clk 0:02:59.8]} 2. b3 {[%clk 0:02:58.3]}
2... Nc6 {[%clk 0:02:55.5]} 3. Bb2 {[%clk 0:02:58.4]} 3... e6 {[%clk 0:02:55.5]}
4. Nf3 {[%clk 0:02:56.4]} 4... Nf6 {[%clk 0:02:53.2]} 5. Nc3 {[%clk 0:02:55.9]}
5... d5 {[%clk 0:02:51.6]} 6. exd5 {[%clk 0:02:55.7]} 6... exd5 {[%clk
0:02:50.1]} 7. Bb5 {[%clk 0:02:55.1]} 7... d4 {[%clk 0:02:48.4]} 8. Qe2+ {[%clk
0:02:54.1]} 8... Be7 {[%clk 0:02:47.5]} 9. Ne4 {[%clk 0:02:52.2]} 9... O-O
{[%clk 0:02:45.1]} 10. O-O {[%clk 0:02:44.3]} 10... Bg4 {[%clk 0:02:43.4]} 11.
Bxc6 {[%clk 0:02:41.3]} 11... bxc6 {[%clk 0:02:34.9]} 12. h3 {[%clk 0:02:41.2]}
12... Bh5 {[%clk 0:02:32.6]} 13. Ng3 {[%clk 0:02:39]} 13... Bg6 {[%clk 0:02:32]}
14. Ne5 {[%clk 0:02:38.7]} 14... Qc7 {[%clk 0:02:25.4]} 15. Nxg6 {[%clk
0:02:37.8]} 15... hxg6 {[%clk 0:02:25.5]} 16. Ne4 {[%clk 0:02:33.9]} 16... Nd5
{[%clk 0:02:23.9]} 17. Rae1 {[%clk 0:02:27.9]} 17... Rae8 {[%clk 0:02:11]} 18.
Qc4 {[%clk 0:02:26.6]} 18... Qb6 {[%clk 0:02:02.9]} 19. a4 {[%clk 0:02:23.8]}
19... f5 {[%clk 0:01:58.4]} 20. Ng3 {[%clk 0:02:18.6]} 20... Kh7 {[%clk
0:01:58.3]} 21. Re6 {[%clk 0:02:10.5]} 21... Bg5 {[%clk 0:01:56.2]} 22. a5
{[%clk 0:01:59.6]} 22... Qc7 {[%clk 0:01:44.4]} 23. Rxe8 {[%clk 0:01:59.2]}
23... Rxe8 {[%clk 0:01:42.8]} 24. Qxc5 {[%clk 0:01:54.1]} 24... f4 {[%clk
0:01:27.3]} 25. Nh1 {[%clk 0:01:49.8]} 25... f3 {[%clk 0:01:24.6]} 26. Qxd4
{[%clk 0:01:47.9]} 26... fxg2 {[%clk 0:01:17]} 27. Kxg2 {[%clk 0:01:48.8]} 27...
Nf4+ {[%clk 0:01:13.1]} 28. Kf3 {[%clk 0:01:43.2]} 28... Ne2 {[%clk 0:01:02.5]}
29. Qg4 {[%clk 0:01:29.6]} 29... Qf7+ {[%clk 0:00:53]} 30. Kg2 {[%clk
0:01:26.4]} 30... Bxd2 {[%clk 0:00:52.5]} 31. Ng3 {[%clk 0:01:22.9]} 31... Nf4+
{[%clk 0:00:51.3]} 32. Kh2 {[%clk 0:01:22.8]} 32... Qd5 {[%clk 0:00:33]} 33. Rg1
{[%clk 0:01:16.6]} 33... Re6 {[%clk 0:00:29]} 34. Nf5 {[%clk 0:01:14.9]} 34...
Qxf5 {[%clk 0:00:18]} 35. Qxf5 {[%clk 0:01:02.6]} 35... gxf5 {[%clk 0:00:17.8]}
36. Rxg7+ {[%clk 0:01:03.5]} 36... Kh6 {[%clk 0:00:17.7]} 37. Rxa7 {[%clk
0:00:59.2]} 37... Nh5 {[%clk 0:00:17]} 38. a6 {[%clk 0:00:56.1]} 38... Re2
{[%clk 0:00:16.4]} 39. Bd4 {[%clk 0:00:51.7]} 39... Bg5 {[%clk 0:00:15]} 40. Rc7
{[%clk 0:00:48.2]} 40... Rxc2 {[%clk 0:00:14.1]} 41. a7 {[%clk 0:00:47.7]} 41...
Ra2 {[%clk 0:00:14.1]} 42. Rxc6+ {[%clk 0:00:47.1]} 42... Kh7 {[%clk 0:00:14.3]}
43. Rc7+ {[%clk 0:00:46.6]} 43... Kg6 {[%clk 0:00:12]} 44. Rc6+ {[%clk
0:00:45.3]} 44... Kh7 {[%clk 0:00:11.2]} 45. Rc8 {[%clk 0:00:44.9]} 45... Bf4+
{[%clk 0:00:09.1]} 46. Kg2 {[%clk 0:00:44.7]} 46... Rxa7 {[%clk 0:00:07.4]} 47.
Bxa7 {[%clk 0:00:44.4]} 47... Be5 {[%clk 0:00:07.3]} 48. Be3 {[%clk 0:00:43.5]}
48... f4 {[%clk 0:00:06.3]} 49. Rc5 {[%clk 0:00:43.1]} 49... fxe3 {[%clk
0:00:04.5]} 50. Rxe5 {[%clk 0:00:42.9]} 1-0

[Event "Early-Titled-Tuesday-Blitz-January-23-2024"]
[Site "Chess.com"]
[Date "2024.01.23"]
[Round "9"]
[White "hmatyi07"]
[Black "LaPiToB"]
[Result "1/2-1/2"]
[WhiteElo "2185"]
[BlackElo "2288"]
[TimeControl "180+1"]
[EndTime "9:45:37 PST"]
[Termination "Game drawn by repetition"]

1. e4 {[%clk 0:03:00.9]} 1... c6 {[%clk 0:02:57.4]} 2. d4 {[%clk 0:03:00.2]}
2... d5 {[%clk 0:02:57.3]} 3. f3 {[%clk 0:03:00.3]} 3... dxe4 {[%clk 0:02:56.7]}
4. fxe4 {[%clk 0:03:00.4]} 4... e5 {[%clk 0:02:57.3]} 5. Nf3 {[%clk 0:03:00.3]}
5... Bg4 {[%clk 0:02:57.8]} 6. c3 {[%clk 0:03:00.5]} 6... Nd7 {[%clk 0:02:58.2]}
7. Bd3 {[%clk 0:03:00.6]} 7... Ngf6 {[%clk 0:02:56.8]} 8. O-O {[%clk 0:02:57.8]}
8... Bd6 {[%clk 0:02:56.2]} 9. Nbd2 {[%clk 0:02:56.4]} 9... O-O {[%clk
0:02:54.2]} 10. Nc4 {[%clk 0:02:56.3]} 10... Bc7 {[%clk 0:02:51.8]} 11. Ne3
{[%clk 0:02:52.7]} 11... Bh5 {[%clk 0:02:40.7]} 12. Nf5 {[%clk 0:02:43.3]} 12...
Re8 {[%clk 0:02:32.4]} 13. Qc2 {[%clk 0:02:41.2]} 13... Bg6 {[%clk 0:02:27.8]}
14. N3h4 {[%clk 0:02:37.2]} 14... exd4 {[%clk 0:02:20.8]} 15. cxd4 {[%clk
0:02:36]} 15... Bb6 {[%clk 0:02:19]} 16. Kh1 {[%clk 0:02:27.4]} 16... Nf8 {[%clk
0:02:11.6]} 17. Be3 {[%clk 0:02:05.9]} 17... Ne6 {[%clk 0:02:04.2]} 18. Rad1
{[%clk 0:01:36.4]} 18... Bh5 {[%clk 0:01:36.3]} 19. Rd2 {[%clk 0:01:28.4]} 19...
Ba5 {[%clk 0:01:31.8]} 20. Rdf2 {[%clk 0:01:26.3]} 20... Ng4 {[%clk 0:01:29.5]}
21. Rf3 {[%clk 0:01:12.2]} 21... Nxe3 {[%clk 0:01:26.4]} 22. Rxe3 {[%clk
0:01:09.4]} 22... Nxd4 {[%clk 0:01:25.6]} 23. Qc4 {[%clk 0:00:44.6]} 23... Nxf5
{[%clk 0:01:10.4]} 24. Nxf5 {[%clk 0:00:44.1]} 24... Bg6 {[%clk 0:01:06.3]} 25.
Rg3 {[%clk 0:00:38.2]} 25... Bc7 {[%clk 0:00:55]} 26. Nxg7 {[%clk 0:00:32.6]}
26... Bxg3 {[%clk 0:00:51.9]} 27. Nxe8 {[%clk 0:00:32.6]} 27... Qxe8 {[%clk
0:00:50.7]} 28. hxg3 {[%clk 0:00:31.9]} 28... Rd8 {[%clk 0:00:49.9]} 29. Bc2
{[%clk 0:00:27.4]} 29... Qe5 {[%clk 0:00:49.2]} 30. Qb3 {[%clk 0:00:18.4]} 30...
Rd7 {[%clk 0:00:42.9]} 31. Bd3 {[%clk 0:00:10.9]} 31... Kg7 {[%clk 0:00:41.8]}
32. Bc4 {[%clk 0:00:10.8]} 32... Qh5+ {[%clk 0:00:37.5]} 33. Kg1 {[%clk
0:00:10.9]} 33... Qc5+ {[%clk 0:00:34.9]} 34. Kh1 {[%clk 0:00:11]} 34... Qh5+
{[%clk 0:00:31.3]} 35. Kg1 {[%clk 0:00:11.2]} 35... Bxe4 {[%clk 0:00:31.4]} 36.
Qc3+ {[%clk 0:00:08]} 36... Kg8 {[%clk 0:00:29.3]} 37. Qe3 {[%clk 0:00:06.9]}
37... Re7 {[%clk 0:00:20.5]} 38. Rxf7 {[%clk 0:00:06.3]} 38... Rxf7 {[%clk
0:00:20]} 39. Qxe4 {[%clk 0:00:06.8]} 39... Qc5+ {[%clk 0:00:19.8]} 40. Kh2
{[%clk 0:00:06.4]} 40... Qh5+ {[%clk 0:00:19.6]} 41. Kg1 {[%clk 0:00:06.9]}
41... Qd1+ {[%clk 0:00:19.1]} 42. Kh2 {[%clk 0:00:07.3]} 42... Qh5+ {[%clk
0:00:18.9]} 43. Kg1 {[%clk 0:00:07.6]} 1/2-1/2

[Event "Early-Titled-Tuesday-Blitz-January-23-2024"]
[Site "Chess.com"]
[Date "2024.01.23"]
[Round "9"]
[White "Byniolus"]
[Black "Alexchess1984"]
[Result "1-0"]
[WhiteElo "2860"]
[BlackElo "2684"]
[TimeControl "180+1"]
[EndTime "9:45:39 PST"]
[Termination "Byniolus won by resignation"]

1. d4 {[%clk 0:03:00.9]} 1... Nf6 {[%clk 0:01:47.8]} 2. Nf3 {[%clk 0:03:00.9]}
2... g6 {[%clk 0:01:41.8]} 3. Bf4 {[%clk 0:03:01.1]} 3... Bg7 {[%clk 0:01:41.1]}
4. e3 {[%clk 0:03:01.8]} 4... d5 {[%clk 0:01:40.6]} 5. Nbd2 {[%clk 0:03:01.2]}
5... O-O {[%clk 0:01:40.4]} 6. c3 {[%clk 0:03:01.5]} 6... b6 {[%clk 0:01:38.4]}
7. h3 {[%clk 0:03:00.4]} 7... Bb7 {[%clk 0:01:38.4]} 8. Bd3 {[%clk 0:03:00.6]}
8... c5 {[%clk 0:01:37.7]} 9. O-O {[%clk 0:03:00.7]} 9... Nc6 {[%clk 0:01:37.6]}
10. Qe2 {[%clk 0:02:57.6]} 10... Nd7 {[%clk 0:01:34.5]} 11. Bh2 {[%clk
0:02:54.1]} 11... e5 {[%clk 0:01:33.2]} 12. dxe5 {[%clk 0:02:40.4]} 12... Ndxe5
{[%clk 0:01:30.6]} 13. Ba6 {[%clk 0:02:34.7]} 13... Nxf3+ {[%clk 0:01:27]} 14.
Nxf3 {[%clk 0:02:34]} 14... Bxa6 {[%clk 0:01:26.6]} 15. Qxa6 {[%clk 0:02:34.9]}
15... Qe7 {[%clk 0:01:21.4]} 16. Rad1 {[%clk 0:02:22.6]} 16... Rfd8 {[%clk
0:01:20.3]} 17. Rd2 {[%clk 0:02:17.6]} 17... d4 {[%clk 0:01:18.1]} 18. exd4
{[%clk 0:01:58.6]} 18... cxd4 {[%clk 0:01:19]} 19. c4 {[%clk 0:01:57.6]} 19...
d3 {[%clk 0:00:57.4]} 20. Bf4 {[%clk 0:01:41.1]} 20... Qe4 {[%clk 0:00:55.2]}
21. Bg5 {[%clk 0:01:31.5]} 21... Rd7 {[%clk 0:00:51.8]} 22. Re1 {[%clk
0:01:30.3]} 22... Qf5 {[%clk 0:00:51.6]} 23. Qb5 {[%clk 0:01:15.1]} 23... Qxb5
{[%clk 0:00:46.5]} 24. cxb5 {[%clk 0:01:16]} 24... Na5 {[%clk 0:00:43.8]} 25.
Red1 {[%clk 0:00:51.9]} 25... h6 {[%clk 0:00:42.6]} 26. Bh4 {[%clk 0:00:24.1]}
26... g5 {[%clk 0:00:41.8]} 27. Bg3 {[%clk 0:00:24.8]} 27... Rad8 {[%clk
0:00:41.6]} 28. Ne1 {[%clk 0:00:22.9]} 28... Nc4 {[%clk 0:00:21.2]} 29. Rxd3
{[%clk 0:00:23.3]} 29... Rxd3 {[%clk 0:00:21.4]} 30. Nxd3 {[%clk 0:00:18.5]}
30... f5 {[%clk 0:00:15.8]} 31. b3 {[%clk 0:00:09.9]} 31... Na3 {[%clk
0:00:15.6]} 32. f4 {[%clk 0:00:09.4]} 32... Nxb5 {[%clk 0:00:14.8]} 33. Nf2
{[%clk 0:00:09.8]} 33... Rxd1+ {[%clk 0:00:14.2]} 34. Nxd1 {[%clk 0:00:10.7]}
34... Bd4+ {[%clk 0:00:14]} 35. Kf1 {[%clk 0:00:10.6]} 35... Kf7 {[%clk
0:00:13.9]} 36. Ke2 {[%clk 0:00:09.5]} 36... Bf6 {[%clk 0:00:12.7]} 37. Kd3
{[%clk 0:00:08.9]} 37... Nc3 {[%clk 0:00:11.3]} 38. Nxc3 {[%clk 0:00:08.6]} 1-0

[Event "Early-Titled-Tuesday-Blitz-January-23-2024"]
[Site "Chess.com"]
[Date "2024.01.23"]
[Round "9"]
[White "BardArtem"]
[Black "shimastream"]
[Result "0-1"]
[WhiteElo "2820"]
[BlackElo "3020"]
[TimeControl "180+1"]
[EndTime "9:45:40 PST"]
[Termination "shimastream won by resignation"]

1. e4 {[%clk 0:03:00.9]} 1... e5 {[%clk 0:02:56]} 2. Nf3 {[%clk 0:02:59.8]} 2...
Nc6 {[%clk 0:02:55.8]} 3. Bc4 {[%clk 0:02:59.6]} 3... Nf6 {[%clk 0:02:53.6]} 4.
d3 {[%clk 0:02:59.7]} 4... Be7 {[%clk 0:02:52.7]} 5. Nc3 {[%clk 0:02:59.2]} 5...
O-O {[%clk 0:02:51.1]} 6. a3 {[%clk 0:02:59.5]} 6... d6 {[%clk 0:02:50.6]} 7. h3
{[%clk 0:02:59.1]} 7... Be6 {[%clk 0:02:49.8]} 8. O-O {[%clk 0:02:56.6]} 8...
Qd7 {[%clk 0:02:46]} 9. Re1 {[%clk 0:02:52.2]} 9... h6 {[%clk 0:02:44.8]} 10.
Qe2 {[%clk 0:02:42.6]} 10... Rae8 {[%clk 0:02:40.9]} 11. Nd5 {[%clk 0:02:27.3]}
11... Bd8 {[%clk 0:02:38]} 12. Ba2 {[%clk 0:02:20.7]} 12... Bxd5 {[%clk
0:02:34.1]} 13. exd5 {[%clk 0:02:20]} 13... Ne7 {[%clk 0:02:34.3]} 14. c4 {[%clk
0:02:18.8]} 14... Ng6 {[%clk 0:02:28.6]} 15. Be3 {[%clk 0:02:14.8]} 15... Nh5
{[%clk 0:02:25.7]} 16. Qd2 {[%clk 0:01:57.4]} 16... f5 {[%clk 0:02:22.8]} 17.
Qa5 {[%clk 0:01:49.5]} 17... a6 {[%clk 0:02:14.4]} 18. c5 {[%clk 0:01:42.4]}
18... Qf7 {[%clk 0:02:03]} 19. c6 {[%clk 0:01:33]} 19... b6 {[%clk 0:02:02.4]}
20. Qxa6 {[%clk 0:01:29.9]} 20... Ngf4 {[%clk 0:02:02.9]} 21. d4 {[%clk
0:01:20]} 21... e4 {[%clk 0:01:51.1]} 22. Nd2 {[%clk 0:01:09.2]} 22... Qg6
{[%clk 0:01:50.2]} 23. Qf1 {[%clk 0:01:09.3]} 23... Nxh3+ {[%clk 0:01:50]} 24.
Kh1 {[%clk 0:01:07]} 24... N3f4 {[%clk 0:01:46.9]} 25. Bb1 {[%clk 0:00:59.8]}
25... Kh8 {[%clk 0:01:44.2]} 26. Bxf4 {[%clk 0:00:41.9]} 26... Nxf4 {[%clk
0:01:43.9]} 27. a4 {[%clk 0:00:38]} 27... Bf6 {[%clk 0:01:35.6]} 28. Ra3 {[%clk
0:00:30]} 28... Bxd4 {[%clk 0:01:34.3]} 29. Rg3 {[%clk 0:00:21.8]} 29... Qf6
{[%clk 0:01:29.6]} 30. Kg1 {[%clk 0:00:07.9]} 30... Bxb2 {[%clk 0:01:24.6]} 31.
Nc4 {[%clk 0:00:05.4]} 31... Bd4 {[%clk 0:01:24.2]} 32. Ne3 {[%clk 0:00:04]}
32... Qh4 {[%clk 0:00:46.8]} 33. Bc2 {[%clk 0:00:01.5]} 33... Nh5 {[%clk
0:00:28]} 34. Rh3 {[%clk 0:00:01.5]} 34... Qg5 {[%clk 0:00:28.7]} 35. Nc4 {[%clk
0:00:01.4]} 35... Ng3 {[%clk 0:00:25.1]} 36. Rxg3 {[%clk 0:00:01.1]} 36... Qxg3
{[%clk 0:00:26]} 37. Qe2 {[%clk 0:00:01.5]} 37... f4 {[%clk 0:00:22.3]} 38. Nd2
{[%clk 0:00:01.6]} 38... f3 {[%clk 0:00:18.9]} 39. Nxf3 {[%clk 0:00:01.7]} 39...
exf3 {[%clk 0:00:18.8]} 40. Qxe8 {[%clk 0:00:02.6]} 0-1

[Event "Early-Titled-Tuesday-Blitz-January-23-2024"]
[Site "Chess.com"]
[Date "2024.01.23"]
[Round "9"]
[White "Iskusnyh"]
[Black "Irishchessman16"]
[Result "1-0"]
[WhiteElo "2659"]
[BlackElo "2502"]
[TimeControl "180+1"]
[EndTime "9:45:40 PST"]
[Termination "Iskusnyh won by resignation"]

1. d4 {[%clk 0:02:57.9]} 1... Nf6 {[%clk 0:02:57.1]} 2. c4 {[%clk 0:02:57.2]}
2... e6 {[%clk 0:02:57.3]} 3. g3 {[%clk 0:02:55.1]} 3... c5 {[%clk 0:02:55.2]}
4. Nf3 {[%clk 0:02:54.6]} 4... cxd4 {[%clk 0:02:54.5]} 5. Nxd4 {[%clk
0:02:55.5]} 5... a6 {[%clk 0:02:54.5]} 6. Bg2 {[%clk 0:02:52.1]} 6... Qc7 {[%clk
0:02:54.6]} 7. b3 {[%clk 0:02:44.1]} 7... Bc5 {[%clk 0:02:50.2]} 8. O-O {[%clk
0:02:39.9]} 8... O-O {[%clk 0:02:49.2]} 9. Bb2 {[%clk 0:02:38.7]} 9... Nc6
{[%clk 0:02:48]} 10. Nxc6 {[%clk 0:02:35.8]} 10... dxc6 {[%clk 0:02:45]} 11.
Bxf6 {[%clk 0:02:31]} 11... gxf6 {[%clk 0:02:45.9]} 12. Nc3 {[%clk 0:02:30.9]}
12... Qe5 {[%clk 0:02:38.7]} 13. Qc2 {[%clk 0:02:23.9]} 13... f5 {[%clk
0:02:33.8]} 14. Rad1 {[%clk 0:02:20.8]} 14... Bb4 {[%clk 0:02:27.2]} 15. Na4
{[%clk 0:02:09.7]} 15... b5 {[%clk 0:02:27.1]} 16. Nb2 {[%clk 0:01:52.6]} 16...
Ra7 {[%clk 0:02:10.6]} 17. Nd3 {[%clk 0:01:37.1]} 17... Qc3 {[%clk 0:02:10.2]}
18. Nxb4 {[%clk 0:01:36.9]} 18... Qxb4 {[%clk 0:02:11.1]} 19. Bxc6 {[%clk
0:01:36.4]} 19... bxc4 {[%clk 0:02:05.9]} 20. bxc4 {[%clk 0:01:08.4]} 20... Rc7
{[%clk 0:02:04.8]} 21. Bf3 {[%clk 0:01:05.7]} 21... Rxc4 {[%clk 0:01:58.7]} 22.
Qd3 {[%clk 0:01:05.1]} 22... e5 {[%clk 0:01:41.9]} 23. Bd5 {[%clk 0:00:51.5]}
23... Rg4 {[%clk 0:01:10.8]} 24. Qe3 {[%clk 0:00:47]} 24... Re8 {[%clk
0:01:03.9]} 25. Bc6 {[%clk 0:00:44.9]} 25... f4 {[%clk 0:00:54.1]} 26. Qa7
{[%clk 0:00:33.4]} 26... Rf8 {[%clk 0:00:53.1]} 27. Qc7 {[%clk 0:00:27]} 27...
Rg5 {[%clk 0:00:46.1]} 28. Rd8 {[%clk 0:00:23.7]} 28... Bh3 {[%clk 0:00:32.6]}
29. Rfd1 {[%clk 0:00:21.3]} 29... Kg7 {[%clk 0:00:28.5]} 30. Rxf8 {[%clk
0:00:20.7]} 30... Qxf8 {[%clk 0:00:26.8]} 31. Rd6 {[%clk 0:00:19]} 31... Be6
{[%clk 0:00:17.3]} 32. Rxe6 {[%clk 0:00:17.7]} 32... Qc5 {[%clk 0:00:15.5]} 33.
Re7 {[%clk 0:00:17]} 33... Rf5 {[%clk 0:00:12.3]} 34. Be4 {[%clk 0:00:15.5]}
34... Qxc7 {[%clk 0:00:08.5]} 35. Rxc7 {[%clk 0:00:15.2]} 35... Rf6 {[%clk
0:00:09.4]} 36. g4 {[%clk 0:00:13.7]} 36... Rb6 {[%clk 0:00:08.8]} 37. Bd5
{[%clk 0:00:12.8]} 1-0

[Event "Early-Titled-Tuesday-Blitz-January-23-2024"]
[Site "Chess.com"]
[Date "2024.01.23"]
[Round "9"]
[White "LangesNasenhaar"]
[Black "Kostukov_Alex"]
[Result "1-0"]
[WhiteElo "2421"]
[BlackElo "2297"]
[TimeControl "180+1"]
[EndTime "9:45:41 PST"]
[Termination "LangesNasenhaar won on time"]

1. d4 {[%clk 0:03:00.9]} 1... g6 {[%clk 0:02:56.4]} 2. Nc3 {[%clk 0:02:58.6]}
2... Bg7 {[%clk 0:02:56.1]} 3. e4 {[%clk 0:02:59.1]} 3... d6 {[%clk 0:02:50.5]}
4. Bg5 {[%clk 0:02:56]} 4... c5 {[%clk 0:02:45.5]} 5. dxc5 {[%clk 0:02:49.5]}
5... Qa5 {[%clk 0:02:45.1]} 6. Qd2 {[%clk 0:02:48.3]} 6... Qxc5 {[%clk
0:02:38.3]} 7. Bd3 {[%clk 0:02:40]} 7... Nf6 {[%clk 0:02:32.7]} 8. Nf3 {[%clk
0:02:26.6]} 8... O-O {[%clk 0:02:31.5]} 9. O-O {[%clk 0:02:24.6]} 9... Bg4
{[%clk 0:02:30.3]} 10. Be3 {[%clk 0:02:22.9]} 10... Qh5 {[%clk 0:02:11]} 11. Nd4
{[%clk 0:02:11.3]} 11... Nc6 {[%clk 0:02:05.1]} 12. f3 {[%clk 0:02:10.1]} 12...
Nxd4 {[%clk 0:01:44.1]} 13. Bxd4 {[%clk 0:02:05.5]} 13... Be6 {[%clk 0:01:37.8]}
14. Be3 {[%clk 0:02:03.3]} 14... Rfc8 {[%clk 0:01:31.1]} 15. a3 {[%clk
0:01:53.7]} 15... d5 {[%clk 0:01:20.8]} 16. Rab1 {[%clk 0:01:31.7]} 16... d4
{[%clk 0:01:06.1]} 17. Bxd4 {[%clk 0:01:31.3]} 17... Ng4 {[%clk 0:01:05.2]} 18.
fxg4 {[%clk 0:01:26.8]} 18... Bxd4+ {[%clk 0:01:04.5]} 19. Kh1 {[%clk
0:01:27.4]} 19... Qxg4 {[%clk 0:00:48.7]} 20. Nd5 {[%clk 0:01:09.3]} 20... Bxd5
{[%clk 0:00:44.3]} 21. exd5 {[%clk 0:01:07.9]} 21... Be5 {[%clk 0:00:43.3]} 22.
g3 {[%clk 0:01:08.3]} 22... Qd4 {[%clk 0:00:38.3]} 23. Qg2 {[%clk 0:01:04.1]}
23... Rd8 {[%clk 0:00:33.3]} 24. Be4 {[%clk 0:00:57.4]} 24... Rac8 {[%clk
0:00:29.7]} 25. c3 {[%clk 0:00:56.4]} 25... Qc5 {[%clk 0:00:25]} 26. Rbd1 {[%clk
0:00:48.4]} 26... b5 {[%clk 0:00:23.6]} 27. Bc2 {[%clk 0:00:28.7]} 27... Rd6
{[%clk 0:00:21.2]} 28. Bb3 {[%clk 0:00:27.4]} 28... a5 {[%clk 0:00:17.1]} 29.
Qe2 {[%clk 0:00:27.6]} 29... Bf6 {[%clk 0:00:15]} 30. a4 {[%clk 0:00:26.6]}
30... b4 {[%clk 0:00:12.2]} 31. c4 {[%clk 0:00:26.1]} 31... h5 {[%clk
0:00:10.5]} 32. Rf4 {[%clk 0:00:21.8]} 32... Kg7 {[%clk 0:00:10.4]} 33. Rdf1
{[%clk 0:00:20.4]} 33... Rh8 {[%clk 0:00:09.2]} 34. h4 {[%clk 0:00:19.1]} 34...
Qc7 {[%clk 0:00:07.2]} 35. Qf3 {[%clk 0:00:17.9]} 35... Qb6 {[%clk 0:00:06.4]}
36. Bc2 {[%clk 0:00:15.9]} 36... b3 {[%clk 0:00:02.2]} 37. Bxb3 {[%clk
0:00:12.2]} 37... Qb4 {[%clk 0:00:02.3]} 38. Bc2 {[%clk 0:00:10.1]} 38... Qxb2
{[%clk 0:00:01.1]} 39. Bd3 {[%clk 0:00:10.5]} 1-0

[Event "Early-Titled-Tuesday-Blitz-January-23-2024"]
[Site "Chess.com"]
[Date "2024.01.23"]
[Round "9"]
[White "dianamirza"]
[Black "lularobs"]
[Result "1-0"]
[WhiteElo "1995"]
[BlackElo "1572"]
[TimeControl "180+1"]
[EndTime "9:45:42 PST"]
[Termination "dianamirza won on time"]

1. b4 {[%clk 0:03:00.9]} 1... e5 {[%clk 0:02:56.4]} 2. Bb2 {[%clk 0:03:00.6]}
2... Bxb4 {[%clk 0:02:55]} 3. Bxe5 {[%clk 0:03:01.1]} 3... Nf6 {[%clk
0:02:54.4]} 4. Nf3 {[%clk 0:03:00]} 4... O-O {[%clk 0:02:54.3]} 5. e3 {[%clk
0:02:58.9]} 5... Re8 {[%clk 0:02:51.7]} 6. Bb2 {[%clk 0:02:58.6]} 6... d5 {[%clk
0:02:47.9]} 7. Be2 {[%clk 0:02:58]} 7... b6 {[%clk 0:02:41.4]} 8. O-O {[%clk
0:02:58.2]} 8... Bb7 {[%clk 0:02:41.7]} 9. a3 {[%clk 0:02:58]} 9... Bd6 {[%clk
0:02:41.6]} 10. c4 {[%clk 0:02:56.5]} 10... c5 {[%clk 0:02:40.1]} 11. cxd5
{[%clk 0:02:56]} 11... Nxd5 {[%clk 0:02:29.8]} 12. Nc3 {[%clk 0:02:54.4]} 12...
Nd7 {[%clk 0:02:27.8]} 13. Qb3 {[%clk 0:02:45.5]} 13... N7f6 {[%clk 0:02:23.9]}
14. Bc4 {[%clk 0:02:39.1]} 14... Be5 {[%clk 0:01:50.5]} 15. Nxe5 {[%clk
0:02:31.4]} 15... Rxe5 {[%clk 0:01:48.9]} 16. f4 {[%clk 0:02:07.1]} 16... Re7
{[%clk 0:01:27.6]} 17. e4 {[%clk 0:02:02.6]} 17... Nxc3 {[%clk 0:01:24.2]} 18.
Qxc3 {[%clk 0:01:53.3]} 18... Qd4+ {[%clk 0:01:11.3]} 19. Qxd4 {[%clk
0:01:50.4]} 19... cxd4 {[%clk 0:01:12.2]} 20. e5 {[%clk 0:01:48]} 20... Ne4
{[%clk 0:01:07.5]} 21. Rf2 {[%clk 0:01:27.3]} 21... Nxf2 {[%clk 0:01:02.5]} 22.
Kxf2 {[%clk 0:01:26.9]} 22... Rd8 {[%clk 0:01:01]} 23. d3 {[%clk 0:01:17.1]}
23... Rc7 {[%clk 0:00:55.4]} 24. a4 {[%clk 0:01:15.9]} 24... a6 {[%clk 0:00:55]}
25. Ba3 {[%clk 0:01:13.2]} 25... b5 {[%clk 0:00:42.2]} 26. axb5 {[%clk 0:01:13]}
26... axb5 {[%clk 0:00:42.7]} 27. Bd6 {[%clk 0:00:48.8]} 27... Rc6 {[%clk
0:00:38.9]} 28. Bxb5 {[%clk 0:00:41.9]} 28... Rc2+ {[%clk 0:00:37.7]} 29. Kf1
{[%clk 0:00:30.2]} 29... Bxg2+ {[%clk 0:00:35.2]} 30. Kg1 {[%clk 0:00:30.2]}
30... Bh3 {[%clk 0:00:27.2]} 31. Bc4 {[%clk 0:00:24.1]} 31... Rg2+ {[%clk
0:00:23.7]} 32. Kh1 {[%clk 0:00:23.4]} 32... Rg6 {[%clk 0:00:13.3]} 33. Bd5
{[%clk 0:00:22]} 33... h6 {[%clk 0:00:08.7]} 34. Be4 {[%clk 0:00:17.6]} 34...
Rg4 {[%clk 0:00:07.1]} 35. Bf5 {[%clk 0:00:16.7]} 35... Bg2+ {[%clk 0:00:05.7]}
36. Kg1 {[%clk 0:00:16.9]} 36... Rxf4 {[%clk 0:00:03.6]} 37. Kxg2 {[%clk
0:00:13.7]} 37... Rxf5 {[%clk 0:00:03.8]} 38. Ra4 {[%clk 0:00:11.9]} 38... Rg5+
{[%clk 0:00:02.8]} 39. Kf3 {[%clk 0:00:11.8]} 39... g6 {[%clk 0:00:02.9]} 40.
Rxd4 {[%clk 0:00:11.5]} 40... Kg7 {[%clk 0:00:02.6]} 41. h4 {[%clk 0:00:11.7]}
1-0